bitfinex/quotes_BTCUSD_20250218
["timestamp","ask_amount","ask_price","bid_price","bid_amount"]
[1739911353238,0.159381,94114.0,94113.0,0.3212592]
[1739911353923,0.159381,94114.0,94113.0,0.3252592]
[1739911354134,0.159381,94114.0,94113.0,0.3212592]
[1739911356466,0.17603497,94114.0,94113.0,0.3212592]
[1739911363119,0.159381,94114.0,94113.0,0.3212592]
[1739911366054,0.17603501,94114.0,94113.0,0.3212592]
[1739911366801,0.01665401,94114.0,94113.0,0.3212592]
[1739911367001,0.17603501,94114.0,94113.0,0.3212592]
[1739911368035,0.17603501,94114.0,94113.0,0.3252592]
[1739911369255,0.17603501,94114.0,94113.0,0.3212592]
[1739911369455,0.17603501,94114.0,94113.0,0.3242592]
[1739911372713,0.17603501,94114.0,94113.0,0.3212592]
[1739911372914,0.159381,94114.0,94113.0,0.3212592]
[1739911373654,0.159381,94114.0,94113.0,0.3232592]
[1739911373860,0.159381,94114.0,94113.0,0.3212592]
[1739911374271,0.159381,94114.0,94113.0,0.3232592]
[1739911375450,0.159381,94114.0,94113.0,0.3212592]
[1739911376113,0.176035,94114.0,94113.0,0.3212592]
[1739911376520,0.176035,94114.0,94113.0,0.32641094]
[1739911376935,0.176035,94114.0,94113.0,0.32941094]
[1739911378768,0.176035,94114.0,94113.0,0.32641094]
[1739911379649,0.016654,94114.0,94113.0,0.42891459]
[1739911379864,0.016654,94114.0,94113.0,0.45391459]
[1739911380481,0.016654,94114.0,94113.0,0.61129659]
[1739911381328,0.016654,94114.0,94113.0,0.45191459]
[1739911381702,0.016654,94114.0,94113.0,0.61129659]
[1739911382331,0.016654,94114.0,94113.0,0.61429659]
[1739911382447,0.016654,94114.0,94113.0,0.63552895]
[1739911382862,0.0169942,94114.0,94113.0,0.63552895]
[1739911383069,0.0003402,94114.0,94113.0,0.63552895]
[1739911383270,0.0003402,94114.0,94113.0,0.71742895]
[1739911384092,0.0003402,94114.0,94113.0,1.31082895]
[1739911384307,0.0003402,94114.0,94113.0,1.34935725]
[1739911384503,0.0003402,94114.0,94113.0,1.35123664]
[1739911384712,0.0003402,94114.0,94113.0,1.36823664]
[1739911385118,0.0003402,94114.0,94113.0,1.37023664]
[1739911385344,0.0003402,94114.0,94113.0,1.36823664]
[1739911385548,0.0003402,94114.0,94113.0,1.37523664]
[1739911385940,0.0003402,94114.0,94113.0,1.36823664]
[1739911386119,0.0169892,94114.0,94113.0,1.36823664]
[1739911386356,0.0169892,94114.0,94113.0,1.37523664]
[1739911387958,0.0169892,94114.0,94113.0,1.36823664]
[1739911388339,0.0169892,94114.0,94113.0,1.37523664]
[1739911388544,0.0169892,94114.0,94113.0,1.36823664]
[1739911388937,0.0169892,94114.0,94113.0,1.37523664]
[1739911389505,0.00740204,94140.0,94119.0,0.0771]
[1739911389707,0.0075342,94140.0,94126.0,0.023]
[1739911389909,0.0075342,94140.0,94130.0,0.023]
[1739911390137,0.01664921,94135.0,94131.0,0.10250365]
[1739911390333,0.01664921,94135.0,94132.0,0.023]
[1739911390531,0.01664921,94135.0,94134.0,0.023]
[1739911390731,0.15149956,94144.0,94134.0,0.12550365]
[1739911390964,0.15149956,94144.0,94136.0,0.023]
[1739911391195,0.15149956,94144.0,94138.0,0.023]
[1739911391545,0.15149956,94144.0,94139.0,0.42376285]
[1739911391952,0.212442,94143.0,94140.0,0.00700833]
[1739911392108,0.159335,94141.0,94140.0,0.00700833]
[1739911392497,0.19821084,94141.0,94140.0,0.00700833]
[1739911392727,0.90621934,94141.0,94140.0,0.00700833]
[1739911393425,0.159379,94115.0,94106.0,0.3212592]
[1739911393657,0.15149956,94116.0,94108.0,0.023]
[1739911393890,0.15149956,94116.0,94106.0,0.32169982]
[1739911393891,0.15149956,94140.0,94113.0,0.023]
[1739911394153,0.15149956,94140.0,94111.0,0.0751]
[1739911394154,0.159345,94135.0,94115.0,0.023]
[1739911394388,0.212455,94138.0,94117.0,0.023]
[1739911394622,0.15149956,94140.0,94116.0,0.97647847]
[1739911394623,0.159345,94135.0,94121.0,0.182369]
[1739911394830,0.15149956,94140.0,94123.0,0.023]
[1739911395043,0.15149956,94133.0,94125.0,0.023]
[1739911395250,0.15149956,94133.0,94126.0,0.10951424]
[1739911395911,0.159345,94136.0,94126.0,0.10951424]
[1739911396063,0.01664989,94132.0,94126.0,0.10951424]
[1739911396268,0.01664989,94132.0,94126.0,0.10250365]
[1739911396474,0.01664989,94132.0,94127.0,0.00701011]
[1739911396674,0.01664989,94132.0,94128.0,0.10250365]
[1739911397102,0.01664989,94132.0,94131.0,0.159352]
[1739911397279,0.01664989,94132.0,94131.0,0.28591787]
[1739911397484,0.01664989,94132.0,94131.0,0.1325118]
[1739911397719,0.01664989,94132.0,94131.0,0.2918638]
[1739911397974,0.01664989,94132.0,94131.0,0.1325118]
[1739911398143,0.01664989,94132.0,94131.0,0.2918638]
[1739911398791,0.01664989,94132.0,94131.0,0.2938638]
[1739911398987,0.01664989,94132.0,94131.0,0.1345118]
[1739911399534,0.01664989,94132.0,94131.0,0.1325118]
[1739911400120,0.01664989,94132.0,94131.0,0.453771]
[1739911400783,0.17599989,94132.0,94131.0,0.33226735]
[1739911400992,0.37311638,94132.0,94131.0,0.33226735]
[1739911401207,0.80525459,94132.0,94131.0,0.33226735]
[1739911401618,0.80525459,94132.0,94131.0,0.01100815]
[1739911401832,0.15,94131.0,94107.0,0.3212592]
[1739911402036,0.15,94131.0,94106.0,0.54614062]
[1739911402037,0.159393,94107.0,94106.0,0.00044062]
[1739911402442,0.212521,94109.0,94106.0,0.00044062]
[1739911402443,0.159391,94108.0,94106.0,0.00044062]
[1739911402651,0.212521,94109.0,94106.0,0.00044062]
[1739911402867,0.17604691,94107.0,94106.0,0.00044062]
[1739911403075,0.159393,94107.0,94106.0,0.00044062]
[1739911404455,0.00152,94114.0,94106.0,0.00044062]
[1739911404693,0.00152,94114.0,94106.0,0.00344062]
[1739911404931,0.159393,94107.0,94106.0,0.00344062]
[1739911405371,0.159393,94107.0,94106.0,0.00044062]
[1739911405786,0.159393,94107.0,94106.0,0.00144062]
[1739911406006,0.159391,94108.0,94106.0,0.00044062]
[1739911406239,0.01665444,94107.0,94106.0,0.00044062]
[1739911406651,0.01665444,94107.0,94106.0,0.10294427]
[1739911406853,0.01665444,94107.0,94106.0,0.28550827]
[1739911407720,0.01665444,94107.0,94106.0,0.28950827]
[1739911407934,0.01665444,94107.0,94106.0,0.31041582]
[1739911408182,0.01665444,94107.0,94106.0,0.30641582]
[1739911408401,0.01665444,94107.0,94106.0,0.31041582]
[1739911408608,0.01665444,94107.0,94106.0,0.30641582]
[1739911408833,0.01665444,94107.0,94106.0,0.31341582]
[1739911409298,0.01665444,94107.0,94106.0,0.30641582]
[1739911410173,0.00669753,94107.0,94106.0,0.32641582]
[1739911410387,0.00669753,94107.0,94106.0,0.40271582]
[1739911410634,0.00152,94114.0,94106.0,0.40271582]
[1739911410635,0.00152,94114.0,94113.0,0.182382]
[1739911410838,0.00152,94114.0,94113.0,0.28594785]
[1739911411062,0.00152,94114.0,94113.0,0.28488565]
[1739911411909,0.00152,94114.0,94113.0,0.29188565]
[1739911412105,0.00152,94114.0,94113.0,0.28488565]
[1739911412511,0.00152,94114.0,94113.0,0.29188565]
[1739911413726,0.00152,94114.0,94113.0,0.28488565]
[1739911413949,0.00152,94114.0,94113.0,0.29188565]
[1739911414154,0.00152,94114.0,94113.0,0.28488565]
[1739911414513,0.00252,94114.0,94113.0,0.29188565]
[1739911414687,0.00152,94114.0,94113.0,0.28488565]
[1739911415252,0.00252,94114.0,94113.0,0.29188565]
[1739911415420,0.00152,94114.0,94113.0,0.28488565]
[1739911416879,0.00252,94114.0,94113.0,0.29188565]
[1739911417084,0.00152,94114.0,94113.0,0.28488565]
[1739911417498,0.00252,94114.0,94113.0,0.29188565]
[1739911417702,0.00252,94114.0,94113.0,0.28488565]
[1739911417846,0.00252,94114.0,94113.0,0.29188565]
[1739911418043,0.00352,94114.0,94113.0,0.29188565]
[1739911418248,0.00352,94114.0,94113.0,0.48738565]
[1739911418453,0.00352,94114.0,94113.0,0.62300287]
[1739911419445,0.00352,94114.0,94113.0,0.64300287]
[1739911419893,0.00152,94114.0,94113.0,0.63617307]
[1739911420246,0.00152,94114.0,94113.0,0.64317307]
[1739911423101,0.00152,94114.0,94113.0,0.62317307]
[1739911423368,0.00152,94114.0,94113.0,0.60317307]
[1739911423749,0.00152,94114.0,94113.0,0.56385585]
[1739911426745,0.00152,94114.0,94113.0,0.41385585]
[1739911426956,0.00152,94114.0,94113.0,0.26905585]
[1739911427406,0.00152,94114.0,94113.0,0.29205585]
[1739911428252,0.00152,94114.0,94113.0,0.28505585]
[1739911429906,0.00152,94114.0,94113.0,0.29205585]
[1739911431208,0.00152,94114.0,94113.0,0.10967385]
[1739911431477,0.28308508,94114.0,94113.0,0.10967385]
[1739911431727,0.240201,94114.0,94113.0,0.0071702]
[1739911432452,0.2405414,94114.0,94113.0,0.0071702]
[1739911433431,0.18018548,94116.0,94113.0,0.0071702]
[1739911433681,0.18018548,94116.0,94113.0,0.0141702]
[1739911433682,0.159381,94114.0,94113.0,0.0141702]
[1739911434152,0.159381,94114.0,94113.0,0.0001702]
[1739911434342,0.159381,94114.0,94113.0,0.0011702]
[1739911434563,0.309381,94114.0,94113.0,0.0001702]
[1739911435035,0.309381,94114.0,94113.0,0.0011702]
[1739911435251,0.15,94108.0,94102.0,1e-07]
[1739911435468,0.159418,94092.0,94066.0,0.023]
[1739911435891,0.159418,94092.0,94066.0,0.159462]
[1739911436131,0.159418,94092.0,94065.0,0.0001702]
[1739911436345,0.17607436,94092.0,94069.0,0.159456]
[1739911436580,0.17607436,94092.0,94067.0,0.15946]
[1739911436759,0.17607436,94092.0,94065.0,0.0001702]
[1739911436985,0.17607436,94092.0,94066.0,0.212614]
[1739911437198,0.17607436,94092.0,94091.0,0.0021701]
[1739911441029,0.32607436,94092.0,94091.0,0.0021701]
[1739911441238,0.37407436,94092.0,94091.0,0.0021701]
[1739911441446,0.39707436,94092.0,94091.0,0.0021701]
[1739911441655,0.97903641,94092.0,94091.0,0.0021701]
[1739911442464,0.97903641,94092.0,94091.0,0.0001701]
[1739911442682,0.8598764,94092.0,94091.0,0.0001701]
[1739911442881,0.8608764,94092.0,94091.0,0.0001701]
[1739911443732,0.8608764,94092.0,94057.0,0.023]
[1739911443733,0.159447,94075.0,94057.0,0.023]
[1739911444880,0.159447,94075.0,94074.0,0.00030236]
[1739911445707,0.01665941,94075.0,94074.0,0.00030236]
[1739911445916,0.17610641,94075.0,94074.0,0.00030236]
[1739911446118,0.17610641,94075.0,94074.0,0.00530236]
[1739911446580,0.32610641,94075.0,94074.0,0.00530236]
[1739911447613,0.80564951,94075.0,94074.0,0.00530236]
[1739911447812,0.85084951,94075.0,94074.0,0.00530236]
[1739911448639,0.85886273,94075.0,94074.0,0.00530236]
[1739911449257,0.85886273,94075.0,94074.0,0.00030236]
[1739911450258,0.86086273,94075.0,94074.0,0.00030236]
[1739911450481,0.95900602,94075.0,94074.0,0.00030236]
[1739911453117,0.94234661,94075.0,94074.0,0.00030236]
[1739911455871,0.96534661,94075.0,94074.0,0.00030236]
[1739911456063,0.98200888,94075.0,94074.0,0.00030236]
[1739911456985,0.35912249,94075.0,94074.0,0.00030236]
[1739911457206,0.33612249,94075.0,94074.0,0.00030236]
[1739911458720,0.33412249,94075.0,94074.0,0.00030236]
[1739911459146,0.33612249,94075.0,94074.0,0.00030236]
[1739911459396,0.33412249,94075.0,94074.0,0.00030236]
[1739911459804,0.81366629,94075.0,94074.0,0.00030236]
[1739911460303,0.87046477,94075.0,94074.0,0.00030236]
[1739911460511,0.95256477,94075.0,94074.0,0.00030236]
[1739911462194,0.95456477,94075.0,94074.0,0.00030236]
[1739911462406,0.9379025,94075.0,94074.0,0.00030236]
[1739911463803,0.9855025,94075.0,94074.0,3.6e-07]
[1739911464021,1.5717273,94075.0,94074.0,3.6e-07]
[1739911464471,0.309462,94066.0,94065.0,0.00013056]
[1739911464659,0.309462,94066.0,94065.0,0.00026278]
[1739911465562,0.32612525,94066.0,94065.0,0.00026278]
[1739911465993,0.309499,94044.0,94043.0,0.3246]
[1739911466815,0.32616384,94044.0,94043.0,0.3246]
[1739911467322,0.36988469,94044.0,94043.0,0.3246]
[1739911468344,0.36988469,94044.0,94043.0,0.3266]
[1739911469080,0.47238834,94044.0,94043.0,0.002]
[1739911469307,0.96000324,94044.0,94043.0,0.002]
[1739911472403,0.309501,94043.0,94042.0,0.00030177]
[1739911472854,0.03262264,94043.0,94042.0,0.00030177]
[1739911473058,0.159501,94043.0,94042.0,0.00030177]
[1739911473482,0.25233432,94043.0,94042.0,0.00030177]
[1739911473730,0.25533432,94043.0,94042.0,0.00030177]
[1739911474428,0.162501,94043.0,94042.0,0.00030177]
[1739911475642,0.32916702,94043.0,94042.0,0.00030177]
[1739911475875,0.32916702,94043.0,94039.0,0.00017]
[1739911475876,0.309506,94040.0,94039.0,0.00013001]
[1739911477264,0.311506,94040.0,94039.0,0.00013001]
[1739911478780,0.309506,94040.0,94039.0,0.00013001]
[1739911479184,0.311506,94040.0,94039.0,0.00013001]
[1739911479409,0.309506,94040.0,94039.0,0.00013001]
[1739911479822,0.311506,94040.0,94039.0,0.00013001]
[1739911480149,0.161506,94040.0,94039.0,0.00013001]
[1739911480501,0.161506,94040.0,94039.0,0.08193001]
[1739911480756,0.159506,94040.0,94039.0,0.08193001]
[1739911482563,0.161506,94040.0,94039.0,0.08193001]
[1739911482797,0.19317572,94042.0,94039.0,0.08193001]
[1739911483246,0.159506,94040.0,94039.0,0.08193001]
[1739911485384,0.17617189,94040.0,94039.0,0.08193001]
[1739911486040,0.17617189,94040.0,94039.0,0.08293001]
[1739911486864,0.21280095,94043.0,94039.0,0.08293001]
[1739911487091,0.159506,94040.0,94039.0,0.08293001]
[1739911487299,0.17617186,94040.0,94039.0,0.08293001]
[1739911487728,0.17617186,94040.0,94039.0,0.08193001]
[1739911487931,0.01666586,94040.0,94039.0,0.08193001]
[1739911488137,0.17617186,94040.0,94039.0,0.08193001]
[1739911489190,0.01666586,94040.0,94039.0,0.08193001]
[1739911489598,0.01666586,94040.0,94039.0,0.08293001]
[1739911490226,0.01666586,94040.0,94039.0,0.23043366]
[1739911490875,0.01666586,94040.0,94039.0,0.38994166]
[1739911491304,0.01666586,94040.0,94039.0,0.73754166]
[1739911491714,0.01666586,94040.0,94039.0,0.57803366]
[1739911492194,0.01666586,94040.0,94039.0,0.55503366]
[1739911492421,0.17617186,94040.0,94039.0,0.40653001]
[1739911492637,0.17617186,94040.0,94039.0,0.32473001]
[1739911492832,0.159506,94040.0,94039.0,0.32473001]
[1739911493687,0.6392316,94040.0,94039.0,0.32573001]
[1739911494186,0.6392316,94040.0,94039.0,0.32473001]
[1739911494386,0.159506,94040.0,94039.0,0.32473001]
[1739911495387,0.159506,94040.0,94039.0,0.32773001]
[1739911496232,0.17617183,94040.0,94039.0,0.32773001]
[1739911498116,0.01666583,94040.0,94039.0,0.32773001]
[1739911498416,0.17617183,94040.0,94039.0,0.32773001]
[1739911498963,0.01666583,94040.0,94039.0,0.32773001]
[1739911499632,0.17617183,94040.0,94039.0,0.32773001]
[1739911500969,0.01666583,94040.0,94039.0,0.32773001]
[1739911501175,0.01666583,94040.0,94039.0,0.50793366]
[1739911501595,0.01666583,94040.0,94039.0,0.53093366]
[1739911501799,0.01666583,94040.0,94039.0,0.73944166]
[1739911502031,0.01666583,94040.0,94039.0,1.28514166]
[1739911502260,0.0003408,94042.0,94041.0,0.159504]
[1739911502463,0.0003408,94042.0,94041.0,0.44783531]
[1739911503099,0.0003408,94042.0,94041.0,0.49683531]
[1739911503535,0.0003408,94042.0,94041.0,0.51779429]
[1739911503748,0.0003408,94042.0,94041.0,0.52479429]
[1739911504799,0.0003408,94042.0,94041.0,1.54509429]
[1739911506338,0.0003408,94042.0,94041.0,1.12746263]
[1739911506535,0.0003408,94042.0,94041.0,1.25900765]
[1739911507098,0.0003408,94042.0,94041.0,1.28200765]
[1739911507349,0.0003408,94042.0,94041.0,1.28900765]
[1739911508509,0.0003408,94042.0,94041.0,1.28200765]
[1739911508713,0.0003408,94042.0,94041.0,1.28900765]
[1739911509128,0.0003408,94042.0,94041.0,1.28200765]
[1739911509409,0.0003408,94042.0,94041.0,1.28900765]
[1739911510221,0.0003408,94042.0,94041.0,1.28200765]
[1739911510436,0.0003408,94042.0,94041.0,1.43900765]
[1739911510856,0.15,94089.0,94044.0,0.15]
[1739911511071,0.159447,94076.0,94057.0,0.0808]
[1739911511280,0.00013224,94090.0,94063.0,0.023]
[1739911511498,0.01666086,94072.0,94065.0,0.0808]
[1739911511707,0.159453,94072.0,94066.0,0.10250365]
[1739911511906,0.15149956,94080.0,94067.0,0.023]
[1739911512231,0.01666035,94071.0,94068.0,0.10250365]
[1739911512394,0.159457,94069.0,94068.0,0.10250365]
[1739911512810,0.15149956,94080.0,94068.0,0.10250365]
[1739911513039,0.212589,94078.0,94068.0,0.10250365]
[1739911513245,0.159452,94073.0,94068.0,0.10250365]
[1739911513463,0.15149956,94080.0,94068.0,0.10250365]
[1739911513703,0.24858884,94081.0,94068.0,0.10550365]
[1739911513915,0.03600484,94081.0,94073.0,0.159449]
[1739911514127,0.00013224,94090.0,94074.0,0.18330365]
[1739911514339,0.00013224,94090.0,94075.0,0.3719]
[1739911514540,0.00013224,94090.0,94076.0,0.10250365]
[1739911514887,0.00013224,94090.0,94076.0,0.10356653]
[1739911515092,0.00013224,94090.0,94076.0,0.10250365]
[1739911515297,0.01665815,94087.0,94076.0,0.10250365]
[1739911515591,0.01665815,94087.0,94077.0,0.212591]
[1739911515804,0.01665815,94087.0,94078.0,0.10250365]
[1739911516037,0.01665815,94087.0,94078.0,0.42710365]
[1739911516512,0.01665815,94087.0,94081.0,0.159436]
[1739911516723,0.01665815,94087.0,94086.0,0.159428]
[1739911516927,0.01665815,94087.0,94086.0,0.10250365]
[1739911517954,0.01665815,94087.0,94086.0,0.26193165]
[1739911518358,0.01665815,94087.0,94086.0,0.10250365]
[1739911519438,0.01665815,94087.0,94086.0,0.10950365]
[1739911519639,0.01665815,94087.0,94086.0,0.10250365]
[1739911519847,0.01665815,94087.0,94086.0,0.26193165]
[1739911520030,0.01665815,94087.0,94086.0,0.26393165]
[1739911520242,0.01665815,94087.0,94086.0,0.10250365]
[1739911521742,0.01665815,94087.0,94086.0,0.10950365]
[1739911521946,0.01665815,94087.0,94086.0,0.43410365]
[1739911522420,0.00047304,94090.0,94086.0,0.43410365]
[1739911522637,0.00047304,94090.0,94087.0,0.10250365]
[1739911523186,0.159407,94099.0,94087.0,0.10250365]
[1739911523396,0.15194018,94100.0,94087.0,0.10250365]
[1739911523567,0.15194018,94100.0,94087.0,0.26192965]
[1739911523768,0.15984662,94100.0,94088.0,0.0826]
[1739911523974,0.00044062,94100.0,94089.0,0.10250365]
[1739911524270,0.00044062,94100.0,94090.0,0.15942]
[1739911524473,0.03722649,94100.0,94091.0,0.10356642]
[1739911524679,0.00044062,94100.0,94092.0,0.023]
[1739911524898,0.00044062,94100.0,94093.0,0.10250365]
[1739911525086,0.03641025,94100.0,94094.0,0.3246]
[1739911525300,0.00044062,94100.0,94095.0,0.10250365]
[1739911525722,0.0166557,94099.0,94095.0,0.10250365]
[1739911526633,0.0166557,94099.0,94095.0,0.10450365]
[1739911526877,0.0166557,94099.0,94095.0,0.10250365]
[1739911527361,0.159411,94096.0,94095.0,0.003]
[1739911527592,0.212544,94098.0,94095.0,0.003]
[1739911527593,0.159409,94098.0,94095.0,0.003]
[1739911528021,0.159408,94098.0,94095.0,0.003]
[1739911528257,0.0169963,94099.0,94095.0,0.003]
[1739911528675,0.159411,94097.0,94094.0,0.3246]
[1739911528917,0.159413,94095.0,94094.0,0.3246]
[1739911529182,0.6388745,94095.0,94094.0,0.3246]
[1739911529417,0.7888745,94095.0,94094.0,0.32245588]
[1739911529656,0.79696948,94095.0,94094.0,0.32245588]
[1739911529892,0.159443,94077.0,94076.0,0.0001703]
[1739911530589,0.17610346,94077.0,94076.0,0.0001703]
[1739911531036,0.01666046,94077.0,94076.0,0.0001703]
[1739911531316,0.01666046,94077.0,94076.0,0.10267395]
[1739911532319,0.01666046,94077.0,94076.0,0.10667395]
[1739911532578,0.159437,94081.0,94076.0,0.10267395]
[1739911532781,0.159437,94081.0,94077.0,0.10250365]
[1739911533341,0.212566,94088.0,94077.0,0.10250365]
[1739911533547,0.159442,94078.0,94077.0,0.10250365]
[1739911534105,0.159442,94078.0,94077.0,0.004]
[1739911535251,0.159442,94078.0,94076.0,0.0001703]
[1739911535476,0.15149956,94090.0,94076.0,0.0001703]
[1739911535477,0.159443,94077.0,94076.0,0.0001703]
[1739911536397,0.17610155,94078.0,94076.0,0.0001703]
[1739911536830,0.17610155,94078.0,94076.0,0.32662618]
[1739911537454,0.17610155,94078.0,94077.0,0.10250365]
[1739911537455,0.01665955,94078.0,94077.0,0.10250365]
[1739911537713,0.01665955,94078.0,94077.0,0.17810365]
[1739911539407,0.01665955,94078.0,94077.0,0.33754665]
[1739911539824,0.01665955,94078.0,94077.0,0.18310365]
[1739911540074,0.01665955,94078.0,94077.0,0.17810365]
[1739911540506,0.01665955,94078.0,94077.0,0.18210365]
[1739911540887,0.01665955,94078.0,94077.0,0.34154665]
[1739911541457,0.01665955,94078.0,94077.0,1.46783019]
[1739911541662,0.01665955,94078.0,94077.0,1.51223019]
[1739911541858,0.01665955,94078.0,94077.0,1.55512272]
[1739911542063,0.01041222,94078.0,94077.0,1.54812272]
[1739911542268,0.0003406,94094.0,94093.0,0.182416]
[1739911542495,0.0003406,94094.0,94093.0,1.27863813]
[1739911542713,0.0003406,94094.0,94093.0,1.27757553]
[1739911544822,0.0003406,94094.0,94093.0,1.4561944]
[1739911545940,0.00044062,94100.0,94093.0,1.4561944]
[1739911545941,0.00044062,94100.0,94098.0,0.309408]
[1739911546166,0.00044062,94100.0,94098.0,1.40686753]
[1739911546500,0.00044062,94100.0,94098.0,1.42986753]
[1739911546721,0.00044062,94100.0,94098.0,1.44986753]
[1739911547295,0.0003408,94137.0,94136.0,0.159343]
[1739911547518,0.00047293,94137.0,94136.0,0.66200253]
[1739911547933,0.01712069,94137.0,94136.0,0.66200253]
[1739911548555,0.01712069,94137.0,94136.0,0.50265953]
[1739911548761,0.01712069,94137.0,94136.0,0.66600253]
[1739911549375,0.01712069,94137.0,94136.0,1.23470253]
[1739911549583,0.01712069,94137.0,94136.0,1.23070253]
[1739911549788,0.01712069,94137.0,94136.0,1.23470253]
[1739911550645,0.01712069,94137.0,94136.0,1.38470253]
[1739911551105,0.01712069,94137.0,94136.0,1.38070253]
[1739911551320,1e-08,94141.0,94140.0,0.159337]
[1739911551540,1e-08,94141.0,94140.0,0.49140259]
[1739911551731,1e-08,94141.0,94140.0,1.38149653]
[1739911552596,1e-08,94141.0,94140.0,1.38849653]
[1739911553235,1e-08,94141.0,94140.0,1.38149653]
[1739911554356,1e-08,94141.0,94140.0,1.38849653]
[1739911554759,1e-08,94141.0,94140.0,1.38149653]
[1739911554998,1e-08,94141.0,94140.0,1.38849653]
[1739911555201,1e-08,94141.0,94140.0,1.38149653]
[1739911555638,0.000341,94146.0,94140.0,1.38149653]
[1739911555639,0.0002473,94144.0,94143.0,0.309332]
[1739911555851,0.0002473,94144.0,94143.0,0.43483565]
[1739911557750,0.0002473,94144.0,94143.0,1.33067513]
[1739911558110,0.0002473,94144.0,94143.0,1.30299153]
[1739911558541,0.0002473,94144.0,94143.0,1.30999153]
[1739911558941,0.0002473,94144.0,94143.0,1.30299153]
[1739911559288,0.0002473,94144.0,94143.0,1.30999153]
[1739911560087,0.000341,94150.0,94149.0,0.309321]
[1739911560088,1e-08,94150.0,94149.0,0.309321]
[1739911560356,1e-08,94150.0,94149.0,0.43482465]
[1739911561814,1e-08,94150.0,94149.0,0.27550365]
[1739911561995,1e-08,94150.0,94149.0,0.12550365]
[1739911562193,1e-08,94150.0,94149.0,0.10250365]
[1739911562608,0.15932001,94150.0,94149.0,0.10250365]
[1739911562842,1e-08,94150.0,94149.0,0.007]
[1739911563446,1e-08,94150.0,94149.0,0.32945588]
[1739911564091,1e-08,94150.0,94149.0,0.32245588]
[1739911564488,1e-08,94150.0,94149.0,0.32845588]
[1739911565280,1e-08,94150.0,94149.0,0.32245588]
[1739911565760,1e-08,94150.0,94149.0,0.32645588]
[1739911566173,0.01664603,94150.0,94149.0,0.32645588]
[1739911567171,0.0003408,94185.0,94149.0,0.32645588]
[1739911567400,0.159296,94165.0,94151.0,0.159318]
[1739911567644,0.01664463,94162.0,94152.0,0.10250365]
[1739911568233,0.01664463,94162.0,94153.0,0.34545588]
[1739911568436,0.01664463,94162.0,94154.0,0.10250365]
[1739911569199,0.01664463,94162.0,94155.0,0.159311]
[1739911569377,0.0005404,94169.0,94156.0,0.10250365]
[1739911569583,0.159308,94157.0,94156.0,0.00013208]
[1739911569799,0.0166447,94161.0,94156.0,0.00013208]
[1739911570008,0.0166447,94161.0,94160.0,0.159303]
[1739911570208,0.0166447,94161.0,94160.0,0.10250365]
[1739911570594,0.0166447,94161.0,94160.0,0.26180665]
[1739911570798,0.0166447,94161.0,94160.0,0.28480665]
[1739911571633,0.0005404,94169.0,94161.0,0.173]
[1739911571831,0.0005404,94169.0,94168.0,0.257589]
[1739911572094,0.0005404,94169.0,94168.0,1.22824853]
[1739911572730,0.0005404,94169.0,94168.0,1.37824853]
[1739911572938,0.0005404,94169.0,94168.0,1.43188582]
[1739911573165,0.0005404,94169.0,94168.0,1.48168582]
[1739911573380,0.0005404,94169.0,94168.0,1.45573213]
[1739911573820,0.0005404,94169.0,94168.0,1.42804853]
[1739911580364,0.0003408,94182.0,94176.0,0.414476]
[1739911580561,0.0003408,94182.0,94176.0,0.51697965]
[1739911582899,0.0003408,94182.0,94176.0,0.53791272]
[1739911583369,0.0003408,94182.0,94181.0,0.309267]
[1739911583576,0.0003408,94182.0,94181.0,0.43477065]
[1739911584427,0.0003408,94182.0,94181.0,1.30292653]
[1739911584635,0.0003408,94182.0,94181.0,0.99365953]
[1739911584845,0.0003408,94182.0,94181.0,0.97065953]
[1739911585070,0.1596068,94182.0,94181.0,0.32245588]
[1739911585707,0.1762485,94182.0,94181.0,0.32245588]
[1739911586598,0.0169825,94182.0,94181.0,0.42495953]
[1739911586820,0.0169825,94182.0,94181.0,0.44795953]
[1739911587704,0.0169825,94182.0,94181.0,0.32245588]
[1739911587907,0.1762485,94182.0,94181.0,0.32245588]
[1739911588571,0.6995529,94182.0,94181.0,0.32245588]
[1739911589009,0.159288,94169.0,94168.0,0.0003402]
[1739911589212,0.37276987,94169.0,94168.0,0.0003402]
[1739911589415,0.68205787,94169.0,94168.0,0.0003402]
[1739911589645,0.69615787,94169.0,94168.0,0.0003402]
[1739911589849,0.71280395,94169.0,94168.0,0.0003402]
[1739911590049,0.8153076,94169.0,94168.0,0.0003402]
[1739911590610,0.71280395,94169.0,94168.0,0.0003402]
[1739911590811,0.69870395,94169.0,94168.0,0.0003402]
[1739911591414,0.54870395,94169.0,94168.0,0.0003402]
[1739911592252,0.17593408,94169.0,94168.0,0.0003402]
[1739911592452,0.212377,94173.0,94168.0,0.0003402]
[1739911592677,0.159288,94169.0,94168.0,0.0003402]
[1739911594505,0.212331,94193.0,94168.0,0.0003402]
[1739911594794,0.212361,94179.0,94168.0,0.0003402]
[1739911595124,0.0003408,94182.0,94168.0,0.0003402]
[1739911595284,0.212361,94179.0,94168.0,0.0003402]
[1739911595524,0.0003408,94182.0,94168.0,0.10284385]
[1739911595728,0.0003408,94182.0,94169.0,0.10250365]
[1739911595881,0.159268,94181.0,94169.0,0.10250365]
[1739911596078,0.0003408,94182.0,94169.0,0.10250365]
[1739911596278,0.15149956,94180.0,94169.0,0.10250365]
[1739911596722,0.0003408,94182.0,94169.0,0.10250365]
[1739911596723,0.01664266,94178.0,94169.0,0.10250365]
[1739911596924,0.01664266,94178.0,94170.0,0.0763]
[1739911597165,0.01664266,94178.0,94171.0,0.10250365]
[1739911599273,0.01664266,94178.0,94172.0,0.32245588]
[1739911599474,0.01664266,94178.0,94173.0,0.10250365]
[1739911600020,0.17591566,94178.0,94173.0,0.10250365]
[1739911600245,0.17608576,94178.0,94173.0,0.10250365]
[1739911600860,0.01681276,94178.0,94173.0,0.10250365]
[1739911601262,0.01681276,94178.0,94174.0,0.32245588]
[1739911601463,0.0141,94209.0,94176.0,0.159276]
[1739911601662,0.15149956,94200.0,94178.0,0.182272]
[1739911601863,0.21232,94197.0,94180.0,0.023]
[1739911602109,0.159249,94192.0,94181.0,0.10250365]
[1739911602486,0.15149956,94200.0,94181.0,0.10250365]
[1739911602934,0.15925,94192.0,94181.0,0.10250365]
[1739911603138,0.031919,94202.0,94185.0,0.25704743]
[1739911603353,0.04366478,94205.0,94187.0,0.023]
[1739911603638,0.15149956,94220.0,94186.0,0.10250365]
[1739911603639,0.159224,94207.0,94191.0,0.159249]
[1739911603838,0.159226,94206.0,94192.0,0.10250365]
[1739911604075,0.04313719,94207.0,94193.0,0.023]
[1739911604219,0.04313719,94207.0,94197.0,0.159239]
[1739911604421,0.00044046,94207.0,94199.0,0.212316]